fUST/lending_fUST_20240414
["ID","MTS","AMOUNT","RATE_DAILY","PERIOD"]
[322538074,1713042632680,-163.66467761,0.00037506,4]
[322538076,1713042632689,-1069.37301842,0.00037506,4]
[322538079,1713042632708,-2036.86841514,0.00037506,4]
[322538081,1713042632717,-1389.88444152,0.00037507,30]
[322538083,1713042632728,-3620.67388585,0.00037507,30]
[322538087,1713042632749,-2975.75497263,0.00037507,30]
[322538089,1713042632758,-1841.77915,0.00037584,2]
[322538091,1713042632767,-1645.082998,0.00037584,2]
[322538093,1713042632776,-166.67723326,0.00037653,4]
[322538095,1713042632786,-154.76784823,0.00037816,2]
[322538097,1713042632795,-154.76784823,0.00037816,4]
[322538099,1713042632805,-2045.13777758,0.00037817,2]
[322538101,1713042632814,-1013.80017207,0.00037817,4]
[322538103,1713042632826,-2554.4,0.00037817,4]
[322538105,1713042632838,-902.43499995,0.00037817,4]
[322538107,1713042632849,-317.89091704,0.00037817,4]
[322538111,1713042632873,-2075.06392459,0.00037817,4]
[322538113,1713042632882,-843.50236388,0.00037818,2]
[322538255,1713042638449,-465.13392178,0.00037506,4]
[322538257,1713042638459,-24056.49763612,0.00037818,2]
[322538259,1713042638468,-1205.70915261,0.00037969,30]
[322538261,1713042638478,-1841.77915,0.00038042,2]
[322538263,1713042638491,-1645.082998,0.00038042,2]
[322538265,1713042638499,-1841.77915,0.00038501,2]
[322538267,1713042638509,-1645.082998,0.00038501,2]
[322538269,1713042638518,-439.919566,0.00038933,2]
[322538271,1713042638527,-1452.36690419,0.00039148,13]
[322538273,1713042638536,-1348.747124,0.000393,2]
[322538275,1713042638545,-1831.31857883,0.000395,15]
[322538277,1713042638555,-154.78330338,0.00039505,4]
[322538279,1713042638564,-287.17640455,0.00039505,4]
[322538281,1713042638573,-320.10207528,0.00039505,30]
[322538283,1713042638582,-852.3925685,0.00039505,2]
[322538285,1713042638591,-225.0,0.00039506,15]
[322538287,1713042638600,-33296.7715,0.00039507,30]
[322538289,1713042638609,-1000.0,0.00039618,3]
[322538291,1713042638619,-164.93758128,0.00039688,2]
[322538293,1713042638628,-432.07972749,0.0004,120]
[322538295,1713042638638,-154.76784823,0.0004,15]
[322538297,1713042638648,-1759.1339403,0.0004,4]
[322538299,1713042638657,-188.52918615,0.00041,2]
[322538301,1713042638666,-1061.68591961,0.00041,4]
[322538303,1713042638675,-2724.213981,0.00041,30]
[322538305,1713042638685,-2575.48,0.00041146,7]
[322538307,1713042638694,-2575.49,0.00041146,7]
[322538309,1713042638703,-189.73786513,0.00041146,31]
[322538311,1713042638712,-364.35123334,0.00041146,31]
[322538313,1713042638722,-500.0,0.00041146,31]
[322538315,1713042638730,-500.0,0.00041146,31]
[322538317,1713042638742,-626.11400405,0.00041146,31]
[322538319,1713042638751,-234.40776066,0.00041146,31]
[322538321,1713042638761,-56512.90565064,0.00041147,5]
[322538323,1713042638770,-192629.87917215,0.00041147,60]
[322538325,1713042638778,-8698.63173569,0.00041147,2]
[322538327,1713042638788,-10000.0,0.00041147,30]
[322538329,1713042638797,-3267.575757,0.00041147,2]
[322538331,1713042638806,-3260.88129171,0.00041147,2]
[322538333,1713042638816,-2703.25915047,0.00041147,2]
[322538335,1713042638825,-3767.79945515,0.00041147,32]
[322538337,1713042638834,-520.85279807,0.00041147,2]
[322538339,1713042638843,-806.4814227,0.00041147,2]
[322538341,1713042638852,-978.63491958,0.00041147,2]
[322538343,1713042638862,-152.60882267,0.00041147,20]
[322538345,1713042638870,-560.0,0.00041257,3]
[322538347,1713042638879,-1452.36690419,0.00041364,13]
[322538349,1713042638889,-2896.622636,0.00041553,120]
[322538351,1713042638899,-153.74365604,0.00042034,30]
[322538353,1713042638908,-164.93758128,0.00042081,2]
[322538355,1713042638918,-153.85243649,0.00042794,30]
[322538357,1713042638928,-153.74365604,0.00042969,30]
[322538359,1713042638937,-158.70213722,0.00043116,30]
[322538361,1713042638946,-254.245053,0.000434,2]
[322538363,1713042638955,-658.83782252,0.0004358,17]
[322538365,1713042638965,-153.85243649,0.00044219,30]
[322538367,1713042638974,-164.93758128,0.00044475,2]
[322538370,1713042638987,-158.70213722,0.00044485,30]
[322538371,1713042638996,-439.919566,0.00044701,2]
[322538374,1713042639006,-8524.31651613,0.00045,120]
[322538376,1713042639016,-783.0,0.00045382,3]
[322538378,1713042639025,-154.78330338,0.000459,4]
[322538380,1713042639036,-158.70213722,0.00046406,30]
[322538382,1713042639046,-2575.48,0.00046979,7]
[322538384,1713042639055,-245510.68721879,0.0004698,120]
[322538386,1713042639064,-158.70213722,0.00047006,30]
[322538387,1713042639073,-153.85243649,0.00047167,30]
[322538390,1713042639083,-2896.622636,0.00047489,120]
[322538391,1713042639093,-150.6216245,0.00047502,30]
[322538393,1713042639102,-150.6216245,0.00048641,30]
[322538395,1713042639112,-153.74365604,0.00048934,30]
[322538397,1713042639123,-3374.50106562,0.00049,120]
[322538399,1713042639132,-2000.0,0.00049,68]
[322538401,1713042639141,-2903.585161,0.0004901,68]
[322538402,1713042639151,-153.0,0.00049359,2]
[322538403,1713042639175,-1097.0,0.00049921,3]
[322538404,1713042639184,-213.03480365,0.0005,30]
[322538405,1713042639193,-1000.0,0.0005,30]
[322538406,1713042639202,-151.0,0.0005,120]
[322538407,1713042639211,-439.919566,0.00050469,2]
[322538408,1713042639220,-153.74365604,0.00050948,60]
[322538409,1713042639229,-150.6216245,0.00051622,60]
[322538410,1713042639241,-153.74365604,0.00052053,60]
[322538411,1713042639250,-153.74365604,0.00052097,60]
[322538412,1713042639259,-150.6216245,0.0005324,60]
[322538413,1713042639269,-150.6216245,0.00053339,60]
[322538414,1713042639278,-2896.622636,0.00053425,120]
[322538415,1713042639287,-158.70213722,0.00053668,60]
[322538416,1713042639296,-150.71364408,0.00053726,2]
[322538417,1713042639305,-1814.91497123,0.0005452,25]
[322538418,1713042639314,-158.70213722,0.00054592,60]
[322538419,1713042639323,-2575.5,0.00054793,7]
[322538420,1713042639332,-2575.49,0.00054793,7]
[322538421,1713042639341,-501.99942091,0.00054794,120]
[322538422,1713042639350,-500.0,0.00054794,120]
[322538423,1713042639359,-500.0,0.00054794,120]
[322538424,1713042639369,-500.0,0.00054794,120]
[322538425,1713042639378,-500.0,0.00054794,120]
[322538426,1713042639387,-500.0,0.00054794,120]
[322538427,1713042639396,-500.0,0.00054794,120]
[322538428,1713042639405,-200.44017767,0.00054794,120]
[322538429,1713042639414,-500.0,0.00054794,120]
[322538430,1713042639423,-500.0,0.00054794,120]
[322538431,1713042639432,-500.0,0.00054794,120]
[322538432,1713042639441,-500.0,0.00054794,120]
[322538433,1713042639450,-500.0,0.00054794,120]
[322538434,1713042639459,-500.0,0.00054794,120]
[322538435,1713042639468,-500.0,0.00054794,120]
[322538436,1713042639478,-500.0,0.00054794,120]
[322538437,1713042639490,-500.0,0.00054794,120]
[322538438,1713042639499,-500.0,0.00054794,120]
[322538439,1713042639509,-529.55,0.00054794,120]
[322538440,1713042639518,-537.81,0.00054794,120]
[322538441,1713042639527,-500.0,0.00054794,120]
[322538442,1713042639536,-500.0,0.00054794,120]
[322538443,1713042639545,-500.0,0.00054794,120]
[322538444,1713042639554,-500.0,0.00054794,120]
[322538445,1713042639563,-500.0,0.00054794,120]
[322538446,1713042639572,-500.0,0.00054794,120]
[322538447,1713042639582,-500.87977262,0.00054794,120]
[322538448,1713042639591,-500.0,0.00054794,120]
[322538449,1713042639600,-500.0,0.00054794,120]
[322538450,1713042639609,-500.0,0.00054794,120]
[322538451,1713042639619,-500.0,0.00054794,120]
[322538452,1713042639628,-500.0,0.00054794,120]
[322538453,1713042639637,-500.0,0.00054794,120]
[322538454,1713042639647,-500.0,0.00054794,120]
[322538455,1713042639714,-500.0,0.00054794,120]
[322538456,1713042639731,-500.0,0.00054794,120]
[322538457,1713042639751,-500.0,0.00054794,120]
[322538459,1713042639764,-500.0,0.00054794,120]
[322538462,1713042639776,-500.0,0.00054794,120]
[322538464,1713042639787,-500.0,0.00054794,120]
[322538468,1713042639799,-500.0,0.00054794,120]
[322538472,1713042639810,-500.0,0.00054794,120]
[322538473,1713042639822,-500.0,0.00054794,120]
[322538475,1713042639833,-500.0,0.00054794,120]
[322538477,1713042639845,-500.0,0.00054794,120]
[322538479,1713042639856,-500.0,0.00054794,120]
[322538481,1713042639866,-500.0,0.00054794,120]
[322538482,1713042639876,-500.0,0.00054794,120]
[322538484,1713042639887,-500.0,0.00054794,120]
[322538486,1713042639897,-500.0,0.00054794,120]
[322538488,1713042639906,-500.0,0.00054794,120]
[322538489,1713042639916,-500.0,0.00054794,120]
[322538491,1713042639926,-500.0,0.00054794,120]
[322538493,1713042639935,-503.25069039,0.00054794,120]
[322538495,1713042639946,-500.0,0.00054794,120]
[322538497,1713042639955,-500.0,0.00054794,120]
[322538498,1713042639965,-500.0,0.00054794,120]
[322538500,1713042639975,-500.0,0.00054794,120]
[322538502,1713042639988,-500.0,0.00054794,120]
[322538503,1713042639998,-374.25531236,0.00054794,120]
[322538504,1713042640012,-500.35970317,0.00054794,120]
[322538505,1713042640021,-500.0,0.00054794,120]
[322538506,1713042640031,-500.0,0.00054794,120]
[322538507,1713042640041,-503.42122321,0.00054794,120]
[322538508,1713042640054,-500.0,0.00054794,120]
[322538509,1713042640063,-500.0,0.00054794,120]
[322538510,1713042640073,-500.0,0.00054794,120]
[322538513,1713042640083,-300.0,0.00054794,7]
[322538514,1713042640093,-500.0,0.00054794,120]
[322538517,1713042640104,-177.22362244,0.00054794,120]
[322538519,1713042640115,-502.01147874,0.00054794,120]
[322538521,1713042640124,-500.0,0.00054794,120]
[322538522,1713042640134,-1000.0,0.00054794,120]
[322538523,1713042640143,-500.0,0.00054794,120]
[322538524,1713042640152,-500.0,0.00054794,120]
[322538525,1713042640161,-488.56291406,0.00054794,120]
[322538526,1713042640170,-500.0,0.00054794,120]
[322538527,1713042640179,-500.0,0.00054794,120]
[322538528,1713042640188,-500.0,0.00054794,120]
[322538529,1713042640197,-500.0,0.00054794,120]
[322538530,1713042640207,-500.0,0.00054794,120]
[322538531,1713042640216,-500.0,0.00054794,7]
[322538532,1713042640226,-500.0,0.00054794,120]
[322538533,1713042640237,-500.0,0.00054794,120]
[322538534,1713042640247,-500.0,0.00054794,120]
[322538535,1713042640256,-500.0,0.00054794,120]
[322538536,1713042640266,-500.0,0.00054794,120]
[322538537,1713042640276,-500.0,0.00054794,120]
[322538538,1713042640285,-500.0,0.00054794,120]
[322538539,1713042640295,-500.0,0.00054794,120]
[322538540,1713042640305,-500.0,0.00054794,120]
[322538541,1713042640314,-189.90271438,0.00054794,120]
[322538542,1713042640323,-500.0,0.00054794,120]
[322538543,1713042640333,-500.0,0.00054794,120]
[322538544,1713042640342,-500.0,0.00054794,120]
[322538545,1713042640351,-500.0,0.00054794,120]
[322538546,1713042640361,-500.0,0.00054794,120]
[322538547,1713042640370,-239.03280584,0.00054794,120]
[322538548,1713042640382,-500.0,0.00054794,120]
[322538549,1713042640391,-500.0,0.00054794,120]
[322538550,1713042640400,-508.00749955,0.00054794,120]
[322538551,1713042640409,-500.0,0.00054794,120]
[322538552,1713042640419,-500.0,0.00054794,120]
[322538553,1713042640428,-500.0,0.00054794,120]
[322538554,1713042640438,-207.40801537,0.00054794,120]
[322538555,1713042640447,-500.0,0.00054794,120]
[322538556,1713042640456,-500.0,0.00054794,120]
[322538557,1713042640465,-190.52012886,0.00054794,120]
[322538558,1713042640475,-500.0,0.00054794,120]
[322538559,1713042640488,-500.0,0.00054794,120]
[322538560,1713042640498,-500.0,0.00054794,120]
[322538561,1713042640507,-500.0,0.00054794,120]
[322538562,1713042640516,-500.0,0.00054794,120]
[322538563,1713042640526,-1727.48,0.00054794,120]
[322538564,1713042640535,-500.0,0.00054794,120]
[322538565,1713042640544,-500.0,0.00054794,120]
[322538566,1713042640553,-1523.33,0.00054794,120]
[322538567,1713042640562,-500.0,0.00054794,120]
[322538568,1713042640572,-2500.0,0.00054794,120]
[322538569,1713042640581,-1777.41,0.00054794,120]
[322538570,1713042640590,-238.61278251,0.00054794,120]
[322538571,1713042640600,-500.0,0.00054794,120]
[322538572,1713042640609,-512.87285513,0.00054794,120]
[322538573,1713042640618,-1015.74,0.00054794,120]
[322538574,1713042640628,-447.73162758,0.00054794,120]
[322538575,1713042640638,-500.0,0.00054794,120]
[322538576,1713042640647,-500.0,0.00054794,120]
[322538577,1713042640656,-505.09467964,0.00054794,120]
[322538578,1713042640666,-2528.61,0.00054794,120]
[322538579,1713042640675,-500.31148801,0.00054794,120]
[322538580,1713042640684,-509.38981987,0.00054794,120]
[322538581,1713042640695,-500.0,0.00054794,120]
[322538582,1713042640704,-941.64,0.00054794,120]
[322538583,1713042640713,-500.0,0.00054794,120]
[322538584,1713042640722,-506.27,0.00054794,120]
[322538585,1713042640732,-500.0,0.00054794,120]
[322538586,1713042640745,-500.0,0.00054794,120]
[322538587,1713042640754,-500.0,0.00054794,120]
[322538588,1713042640763,-508.54822273,0.00054794,120]
[322538589,1713042640773,-756.64,0.00054794,120]
[322538590,1713042640782,-500.65378748,0.00054794,120]
[322538591,1713042640791,-500.0,0.00054794,120]
[322538592,1713042640801,-398.49582361,0.00054794,120]
[322538593,1713042640810,-830.98,0.00054794,120]
[322538594,1713042640822,-171.86384382,0.00054794,120]
[322538595,1713042640831,-500.0,0.00054794,120]
[322538596,1713042640841,-500.0,0.00054794,120]
[322538598,1713042640850,-2127.0,0.00054794,120]
[322538600,1713042640859,-509.53797973,0.00054794,120]
[322538602,1713042640869,-500.0,0.00054794,120]
[322538604,1713042640879,-500.0,0.00054794,120]
[322538606,1713042640888,-500.0,0.00054794,120]
[322538607,1713042640897,-500.0,0.00054794,120]
[322538609,1713042640907,-500.0,0.00054794,120]
[322538611,1713042640916,-500.0,0.00054794,120]
[322538612,1713042640990,-500.0,0.00054794,120]
[322538613,1713042641002,-500.0,0.00054794,120]
[322538614,1713042641016,-221.02911687,0.00054794,120]
[322538616,1713042641025,-500.0,0.00054794,120]
[322538618,1713042641036,-500.00025,0.00054794,120]
[322538620,1713042641047,-500.0,0.00054794,120]
[322538622,1713042641056,-500.0,0.00054794,120]
[322538624,1713042641068,-500.0,0.00054794,120]
[322538625,1713042641078,-500.0,0.00054794,120]
[322538627,1713042641088,-500.0,0.00054794,120]
[322538628,1713042641098,-500.0,0.00054794,120]
[322538629,1713042641108,-500.0,0.00054794,120]
[322538630,1713042641118,-500.0,0.00054794,120]
[322538631,1713042641127,-780.38,0.00054794,120]
[322538632,1713042641136,-500.0,0.00054794,120]
[322538634,1713042641146,-500.0,0.00054794,120]
[322538636,1713042641155,-500.0,0.00054794,120]
[322538638,1713042641164,-505.69584585,0.00054794,120]
[322538639,1713042641173,-500.0,0.00054794,120]
[322538641,1713042641183,-500.0,0.00054794,120]
[322538643,1713042641192,-907.09,0.00054794,120]
[322538645,1713042641201,-201.19075171,0.00054794,120]
[322538647,1713042641210,-500.0,0.00054794,120]
[322538648,1713042641219,-1040.1,0.00054794,120]
[322538650,1713042641229,-673.45,0.00054794,120]
[322538652,1713042641240,-500.0,0.00054794,120]
[322538654,1713042641249,-27127.44,0.00054794,120]
[322538656,1713042641258,-500.0,0.00054794,120]
[322538657,1713042641268,-500.0,0.00054794,120]
[322538659,1713042641277,-873.94,0.00054794,120]
[322538661,1713042641287,-500.0,0.00054794,120]
[322538662,1713042641297,-362.12041687,0.00054794,120]
[322538663,1713042641308,-500.0,0.00054794,120]
[322538664,1713042641317,-500.0,0.00054794,120]
[322538665,1713042641326,-500.0,0.00054794,120]
[322538666,1713042641335,-2235.64,0.00054794,21]
[322538667,1713042641345,-500.0,0.00054794,120]
[322538668,1713042641354,-500.0,0.00054794,120]
[322538669,1713042641363,-500.0,0.00054794,120]
[322538670,1713042641372,-500.0,0.00054794,120]
[322538671,1713042641383,-500.0,0.00054794,120]
[322538672,1713042641392,-500.0,0.00054794,120]
[322538673,1713042641401,-500.0,0.00054794,120]
[322538674,1713042641410,-500.0,0.00054794,120]
[322538675,1713042641419,-500.0,0.00054794,120]
[322538676,1713042641429,-500.0,0.00054794,120]
[322538677,1713042641438,-500.0,0.00054794,120]
[322538678,1713042641447,-500.0,0.00054794,120]
[322538679,1713042641456,-500.78951343,0.00054794,120]
[322538680,1713042641465,-500.0,0.00054794,120]
[322538681,1713042641474,-509.66714074,0.00054794,120]
[322538682,1713042641484,-500.0,0.00054794,120]
[322538683,1713042641499,-500.0,0.00054794,120]
[322538684,1713042641508,-767.04,0.00054794,120]
[322538685,1713042641517,-500.0,0.00054794,120]
[322538686,1713042641526,-645.75,0.00054794,120]
[322538687,1713042641536,-500.0,0.00054794,120]
[322538688,1713042641545,-523.48574494,0.00054794,120]
[322538689,1713042641554,-325.68165112,0.00054794,120]
[322538690,1713042641563,-500.0,0.00054794,120]
[322538691,1713042641573,-500.0,0.00054794,120]
[322538692,1713042641584,-500.0,0.00054794,120]
[322538693,1713042641593,-500.0,0.00054794,120]
[322538694,1713042641602,-885.37,0.00054794,120]
[322538695,1713042641612,-500.0,0.00054794,120]
[322538696,1713042641621,-500.0,0.00054794,120]
[322538697,1713042641630,-1224.89,0.00054794,2]
[322538698,1713042641639,-500.0,0.00054794,120]
[322538699,1713042641649,-500.0,0.00054794,120]
[322538700,1713042641658,-500.0,0.00054794,120]
[322538701,1713042641667,-3042.01,0.00054794,120]
[322538702,1713042641676,-508.00708882,0.00054794,120]
[322538703,1713042641685,-500.0,0.00054794,120]
[322538704,1713042641695,-554.0,0.00054913,10]
[322538705,1713042641705,-153.74365604,0.00055674,120]
[322538706,1713042641715,-13220.21405982,0.00055698,30]
[322538707,1713042641724,-13569.5891866,0.000557,120]
[322538708,1713042641739,-163.752106,0.00056156,2]
[322538709,1713042641750,-439.919566,0.00056236,2]
[322538710,1713042641759,-153.85243649,0.00056407,120]
[322538711,1713042641769,-150.6216245,0.0005641,120]
[322538712,1713042641778,-158.70213722,0.00056917,120]
[322538713,1713042641789,-1935.90930265,0.00057791,29]
[322538714,1713042641798,-150.6216245,0.00058011,120]
[322538715,1713042641807,-254.245053,0.00058316,120]
[322538716,1713042641817,-193.70471611,0.00058365,4]
[322538717,1713042641826,-150.06786101,0.0005863,7]
[322538718,1713042641836,-153.74365604,0.00058783,120]
[322538719,1713042641845,-153.74365604,0.00059984,120]
[322538720,1713042641855,-544.842795,0.0006,120]
[322538721,1713042641864,-150.6216245,0.00060833,120]
[322538722,1713042641874,-153.74365604,0.00061021,120]
[322538723,1713042641885,-2056.90363406,0.00061062,60]
[322538724,1713042641896,-150.6216245,0.00061109,120]
[322538725,1713042641906,-309.72125088,0.00061368,7]
[322538726,1713042641915,-150.6216245,0.000614,120]
[322538727,1713042641925,-153.85243649,0.00061472,120]
[322538728,1713042641935,-439.919566,0.00062004,2]
[322538729,1713042641945,-150.6216245,0.00063126,120]
[322538730,1713042641955,-246.09790264,0.00064334,60]
[322538731,1713042641965,-150.6216245,0.00064539,120]
[322538732,1713042641975,-1300.0,0.00065,120]
[322538733,1713042641991,-153.85243649,0.000656,120]
[322538734,1713042642002,-150.6216245,0.00065755,120]
[322538735,1713042642016,-150.6216245,0.00065949,120]
[322538736,1713042642026,-300.0,0.00066,120]
[322538737,1713042642035,-150.6216245,0.00066012,120]
[322538738,1713042642044,-153.74365604,0.00066053,120]
[322538739,1713042642055,-153.85243649,0.00066396,120]
[322538740,1713042642064,-158.70213722,0.00066466,120]
[322538741,1713042642073,-473.8694383,0.000669,120]
[322538742,1713042642140,-439.919566,0.00067772,2]
[322538743,1713042642150,-158.70213722,0.00068212,120]
[322538744,1713042642159,-153.74365604,0.00068412,120]
[322538745,1713042642169,-154.78330338,0.00069,7]
[322538746,1713042642178,-1146.0,0.00069,120]
[322538747,1713042642188,-153.74365604,0.00070346,120]
[322538748,1713042642197,-153.85243649,0.00071489,120]
[322538749,1713042642207,-259.23441945,0.00071509,7]
[322538750,1713042642216,-153.85243649,0.00071754,120]
[322538751,1713042642225,-153.74365604,0.00072093,120]
[322538752,1713042642242,-209.5471981,0.00072875,7]
[322538753,1713042642252,-254.245053,0.00073233,120]
[322538754,1713042642262,-439.919566,0.0007354,120]
[322538755,1713042642272,-150.6216245,0.0007399,120]
[322538756,1713042642281,-150.62162452,0.00074506,120]
[322538757,1713042642292,-283.43333732,0.00075176,7]
[322538758,1713042642302,-201.65562337,0.00075866,2]
[322538759,1713042642312,-1570.0,0.00076,120]
[322538760,1713042642321,-862.13234932,0.0007661,120]
[322538761,1713042642331,-862.13234932,0.0007661,120]
[322538762,1713042642341,-862.13234932,0.0007661,120]
[322538763,1713042642351,-862.13234932,0.0007661,120]
[322538764,1713042642360,-862.13234932,0.0007661,120]
[322538765,1713042642370,-862.13234932,0.0007661,120]
[322538766,1713042642381,-862.13234932,0.0007661,120]
[322538767,1713042642392,-862.13234932,0.0007661,120]
[322538768,1713042642402,-862.13234932,0.0007661,120]
[322538769,1713042642412,-862.13234932,0.0007661,120]
[322538770,1713042642422,-862.13234932,0.0007661,120]
[322538771,1713042642433,-862.13234932,0.0007661,120]
[322538772,1713042642444,-862.13234932,0.0007661,120]
[322538773,1713042642454,-862.13234932,0.0007661,120]
[322538774,1713042642464,-862.13234932,0.0007661,120]
[322538775,1713042642475,-862.13234932,0.0007661,120]
[322538776,1713042642489,-862.13234932,0.0007661,120]
[322538777,1713042642499,-862.13234932,0.0007661,120]
[322538778,1713042642508,-862.13234932,0.0007661,120]
[322538779,1713042642518,-862.63,0.0007661,120]
[322538780,1713042642528,-3448.60439728,0.0007661,120]
[322538781,1713042642538,-3448.60439728,0.0007661,120]
[322538782,1713042642548,-3448.60439728,0.0007661,120]
[322538783,1713042642559,-3448.60439728,0.0007661,120]
[322538784,1713042642569,-3448.60439728,0.0007661,120]
[322538785,1713042642579,-3448.60439728,0.0007661,120]
[322538786,1713042642589,-3448.60439728,0.0007661,120]
[322538787,1713042642598,-3448.60439728,0.0007661,120]
[322538788,1713042642608,-3448.60439728,0.0007661,120]
[322538789,1713042642619,-153.85243649,0.0007662,120]
[322538790,1713042642629,-500.0,0.0007663,120]
[322538791,1713042642639,-430.88976759,0.00076631,7]
[322538792,1713042642651,-2655.05513605,0.00076631,7]
[322538793,1713042642661,-543.83485189,0.00076631,7]
[322538794,1713042642672,-155.80459589,0.00076632,7]
[322538795,1713042642681,-156.63566121,0.00076632,7]
[322538796,1713042642691,-2029.35454976,0.00076708,7]
[322538797,1713042642702,-8716.76596975,0.00076708,120]
[322538798,1713042642712,-500.0,0.00076708,2]
[322538799,1713042642721,-294.15620968,0.00076708,2]
[322538800,1713042642731,-2701.971356,0.00076708,7]
[322538801,1713042642745,-156.93393326,0.00076708,7]
[322538802,1713042642755,-1806.687265,0.00076708,7]
[322538803,1713042642764,-342.49538997,0.00076708,7]
[322538804,1713042642775,-210.38651295,0.00076708,2]
[322538805,1713042642784,-818.00051902,0.00076708,2]
[322538806,1713042642794,-239.3999795,0.00076708,7]
[322538809,1713042642804,-283.99441796,0.00076709,7]
[322538811,1713042642813,-162.61767324,0.00076709,7]
[322538813,1713042642824,-155.09610642,0.00076709,7]
[322538815,1713042642834,-207.18381603,0.00076709,7]
[322538817,1713042642843,-173.67326272,0.00076709,7]
[322538819,1713042642853,-155.21758575,0.00076709,7]
[322538821,1713042642862,-675.98060973,0.00076709,7]
[322538822,1713042642872,-241.96307711,0.00076709,7]
[322538824,1713042642881,-2575.48,0.00076709,30]
[322538826,1713042642891,-2575.48,0.00076709,30]
[322538828,1713042642900,-2575.48,0.00076709,30]
[322538830,1713042642911,-500.0,0.00076709,120]
[322538832,1713042642921,-500.0,0.00076709,120]
[322538834,1713042642931,-527.87047722,0.00076709,120]
[322538836,1713042642941,-2575.48,0.00076709,30]
[322538840,1713042642951,-2575.48,0.00076709,30]
[322538844,1713042642961,-867.82809104,0.0007671,7]
[322538848,1713042642971,-257.62252103,0.0007671,7]
[322538850,1713042642981,-187.79272959,0.0007671,7]
[322538852,1713042642995,-376.89055884,0.0007671,7]
[322538853,1713042643006,-1212.72837645,0.0007671,7]
[322538854,1713042643019,-3457.76729452,0.0007671,7]
[322538855,1713042643029,-372.12463709,0.0007671,7]
[322538856,1713042643039,-802.45389962,0.0007671,39]
[322538857,1713042643050,-357.65520002,0.0007671,2]
[322538858,1713042643060,-154.92253873,0.0007671,7]
[322538859,1713042643070,-958.16803838,0.0007671,7]
[322538860,1713042643079,-937.66260611,0.0007671,7]
[322538861,1713042643089,-212839.95183207,0.0007671,30]
[322538862,1713042643098,-7402.23069549,0.00076711,7]
[322538865,1713042643107,-500.0,0.00076711,120]
[322538867,1713042643117,-8161.76,0.00076711,120]
[322538870,1713042643127,-500.0,0.00076712,120]
[322538873,1713042643137,-248.9250752,0.00076712,120]
[322538877,1713042643148,-500.0,0.00076712,120]
[322538880,1713042643158,-500.0,0.00076712,120]
[322538883,1713042643169,-500.0,0.00076712,120]
[322538896,1713042643241,-500.0,0.00076712,120]
[322538897,1713042643250,-500.0,0.00076712,120]
[322538899,1713042643259,-500.0,0.00076712,120]
[322538901,1713042643269,-500.0,0.00076712,120]
[322538903,1713042643278,-500.0,0.00076712,120]
[322538905,1713042643287,-500.0,0.00076712,120]
[322538907,1713042643296,-500.0,0.00076712,120]
[322538909,1713042643306,-500.0,0.00076712,120]
[322538911,1713042643315,-500.0,0.00076712,120]
[322538914,1713042643324,-500.0,0.00076712,120]
[322538915,1713042643334,-529.55,0.00076712,120]
[322538917,1713042643344,-537.81,0.00076712,120]
[322538918,1713042643353,-500.0,0.00076712,120]
[322538920,1713042643363,-500.0,0.00076712,120]
[322538922,1713042643371,-500.0,0.00076712,120]
[322538924,1713042643381,-500.0,0.00076712,120]
[322538925,1713042643390,-611.29418292,0.00076712,120]
[322538927,1713042643399,-500.0,0.00076712,120]
[322538929,1713042643408,-500.0,0.00076712,120]
[322538930,1713042643417,-520.17380218,0.00076712,120]
[322538932,1713042643427,-307.60690274,0.00076712,120]